[Event "Early-Titled-Tuesday-Blitz-October-24-2023"]
[Site "Chess.com"]
[Date "2023.10.24"]
[Round "8"]
[White "SharapovEvgeny"]
[Black "NikolaGry"]
[Result "0-1"]
[WhiteElo "2615"]
[BlackElo "2749"]
[TimeControl "180+1"]
[EndTime "9:26:40 PDT"]
[Termination "NikolaGry won by checkmate"]

1. e4 {[%clk 0:02:59.9]} 1... d5 {[%clk 0:02:58.9]} 2. exd5 {[%clk 0:02:59.6]}
2... Nf6 {[%clk 0:02:59.6]} 3. d4 {[%clk 0:02:59.4]} 3... Bg4 {[%clk 0:02:52.4]}
4. f3 {[%clk 0:02:59.5]} 4... Bf5 {[%clk 0:02:52.5]} 5. Bb5+ {[%clk 0:02:59.2]}
5... Nbd7 {[%clk 0:02:49]} 6. c4 {[%clk 0:02:59]} 6... a6 {[%clk 0:02:48.4]} 7.
Bxd7+ {[%clk 0:02:58.8]} 7... Qxd7 {[%clk 0:02:47.6]} 8. Nc3 {[%clk 0:02:59.1]}
8... O-O-O {[%clk 0:02:27.6]} 9. Nge2 {[%clk 0:02:58.5]} 9... e6 {[%clk
0:02:24.3]} 10. dxe6 {[%clk 0:02:56.9]} 10... Qxe6 {[%clk 0:01:51.4]} 11. d5
{[%clk 0:02:55.2]} 11... Qb6 {[%clk 0:01:49.9]} 12. Qb3 {[%clk 0:02:49.6]} 12...
Qa7 {[%clk 0:01:33.9]} 13. Bf4 {[%clk 0:02:42.8]} 13... Bc5 {[%clk 0:01:27.3]}
14. O-O-O {[%clk 0:02:35.8]} 14... Rhe8 {[%clk 0:01:25.7]} 15. Rd2 {[%clk
0:02:27.7]} 15... Nh5 {[%clk 0:01:18]} 16. g4 {[%clk 0:01:54.6]} 16... Nxf4
{[%clk 0:01:16.8]} 17. Nxf4 {[%clk 0:01:54.8]} 17... Be3 {[%clk 0:01:16.5]} 18.
Rd1 {[%clk 0:01:49.7]} 18... Bxf4 {[%clk 0:01:11.4]} 19. gxf5 {[%clk 0:01:49.7]}
19... Bxd2+ {[%clk 0:01:09.2]} 20. Rxd2 {[%clk 0:01:49.8]} 20... Re1+ {[%clk
0:01:06.4]} 21. Kc2 {[%clk 0:01:46.3]} 21... Qg1 {[%clk 0:01:02.3]} 22. Ne2
{[%clk 0:01:37.2]} 22... Qf1 {[%clk 0:00:51]} 23. Qe3 {[%clk 0:01:30]} 23... g6
{[%clk 0:00:44.5]} 24. c5 {[%clk 0:01:27]} 24... Qh3 {[%clk 0:00:38.6]} 25. fxg6
{[%clk 0:01:16.5]} 25... hxg6 {[%clk 0:00:36.5]} 26. Qe4 {[%clk 0:01:07.4]}
26... Qf5 {[%clk 0:00:28.3]} 27. Qxf5+ {[%clk 0:01:07.1]} 27... gxf5 {[%clk
0:00:28.3]} 28. d6 {[%clk 0:01:00.6]} 28... cxd6 {[%clk 0:00:24.5]} 29. cxd6
{[%clk 0:01:00.6]} 29... Kd7 {[%clk 0:00:23.7]} 30. Ng3 {[%clk 0:00:51.4]} 30...
Rc8+ {[%clk 0:00:23.4]} 31. Kb3 {[%clk 0:00:51.2]} 31... Re3+ {[%clk 0:00:22]}
32. Kb4 {[%clk 0:00:48.9]} 32... Rxf3 {[%clk 0:00:19.5]} 33. Nh5 {[%clk
0:00:43.6]} 33... b6 {[%clk 0:00:18.2]} 34. Nf6+ {[%clk 0:00:37.9]} 34... Ke6
{[%clk 0:00:17.9]} 35. Nd5 {[%clk 0:00:35.1]} 35... Rd8 {[%clk 0:00:16.7]} 36.
Nxb6 {[%clk 0:00:32.7]} 36... Rxd6 {[%clk 0:00:15.3]} 37. Re2+ {[%clk
0:00:31.8]} 37... Kf6 {[%clk 0:00:14.6]} 38. Nc4 {[%clk 0:00:30.7]} 38... Rd4
{[%clk 0:00:11.1]} 39. Kc5 {[%clk 0:00:27.5]} 39... Rh4 {[%clk 0:00:10.7]} 40.
b3 {[%clk 0:00:23.1]} 40... Rfh3 {[%clk 0:00:09.9]} 41. Ne3 {[%clk 0:00:20.2]}
41... Re4 {[%clk 0:00:04.1]} 42. Nd5+ {[%clk 0:00:16]} 42... Ke5 {[%clk
0:00:04.2]} 43. Rd2 {[%clk 0:00:13.8]} 43... f4 {[%clk 0:00:04.3]} 44. Nc7
{[%clk 0:00:11.3]} 44... Rc3+ {[%clk 0:00:03.8]} 45. Kb6 {[%clk 0:00:10.8]}
45... Rb4+ {[%clk 0:00:02.7]} 46. Ka5 {[%clk 0:00:10.7]} 46... Rxc7 {[%clk
0:00:02.6]} 47. Kxb4 {[%clk 0:00:10.7]} 47... Ke4 {[%clk 0:00:02.2]} 48. Ka5
{[%clk 0:00:10.8]} 48... Rc6 {[%clk 0:00:01.8]} 49. b4 {[%clk 0:00:10.6]} 49...
Ke3 {[%clk 0:00:02.1]} 50. Rd1 {[%clk 0:00:10.2]} 50... f3 {[%clk 0:00:02.5]}
51. a4 {[%clk 0:00:10.4]} 51... Ke2 {[%clk 0:00:02.8]} 52. Ra1 {[%clk 0:00:10]}
52... f2 {[%clk 0:00:03.1]} 53. b5 {[%clk 0:00:10.2]} 53... axb5 {[%clk
0:00:03.2]} 54. axb5 {[%clk 0:00:10.5]} 54... Rc5 {[%clk 0:00:03.8]} 55. Kb4
{[%clk 0:00:10.3]} 55... Rf5 {[%clk 0:00:02.9]} 56. b6 {[%clk 0:00:10.3]} 56...
f1=Q {[%clk 0:00:03.1]} 57. Rxf1 {[%clk 0:00:10.1]} 57... Rxf1 {[%clk
0:00:03.3]} 58. h4 {[%clk 0:00:10.7]} 58... Rb1+ {[%clk 0:00:03.2]} 59. Kc5
{[%clk 0:00:10.8]} 59... f5 {[%clk 0:00:03.3]} 60. h5 {[%clk 0:00:10.8]} 60...
f4 {[%clk 0:00:03.7]} 61. h6 {[%clk 0:00:11.5]} 61... Rc1+ {[%clk 0:00:03.5]}
62. Kd6 {[%clk 0:00:11.5]} 62... Rh1 {[%clk 0:00:03.6]} 63. b7 {[%clk
0:00:09.4]} 63... Rxh6+ {[%clk 0:00:03.9]} 64. Ke5 {[%clk 0:00:09.9]} 64... Rh8
{[%clk 0:00:03.7]} 65. Kxf4 {[%clk 0:00:10.4]} 65... Rb8 {[%clk 0:00:04.3]} 66.
Ke5 {[%clk 0:00:11]} 66... Rxb7 {[%clk 0:00:05]} 67. Kd5 {[%clk 0:00:10]} 67...
Rb2 {[%clk 0:00:05.5]} 68. Kc4 {[%clk 0:00:10.3]} 68... Rd2 {[%clk 0:00:06.4]}
69. Kc3 {[%clk 0:00:10.4]} 69... Rd3+ {[%clk 0:00:07.3]} 70. Kc2 {[%clk
0:00:10.8]} 70... Ke3 {[%clk 0:00:07.8]} 71. Kc1 {[%clk 0:00:11.2]} 71... Kd4
{[%clk 0:00:08.2]} 72. Kc2 {[%clk 0:00:11.4]} 72... Kc4 {[%clk 0:00:08.8]} 73.
Kb2 {[%clk 0:00:11.9]} 73... Rc3 {[%clk 0:00:08.4]} 74. Kb1 {[%clk 0:00:12.2]}
74... Kb3 {[%clk 0:00:08.3]} 75. Ka1 {[%clk 0:00:12.6]} 75... Rc1# {[%clk
0:00:08.6]} 0-1

[Event "Early-Titled-Tuesday-Blitz-October-24-2023"]
[Site "Chess.com"]
[Date "2023.10.24"]
[Round "8"]
[White "Malev212"]
[Black "GMSrinath"]
[Result "1/2-1/2"]
[WhiteElo "2638"]
[BlackElo "2818"]
[TimeControl "180+1"]
[EndTime "9:26:44 PDT"]
[Termination "Game drawn by repetition"]

1. Nf3 {[%clk 0:01:48.1]} 1... d5 {[%clk 0:02:57.7]} 2. e3 {[%clk 0:01:40.7]}
2... Nf6 {[%clk 0:02:56.9]} 3. d4 {[%clk 0:01:40.7]} 3... c5 {[%clk 0:02:55]} 4.
Be2 {[%clk 0:01:34.2]} 4... Nc6 {[%clk 0:02:55]} 5. O-O {[%clk 0:01:34.8]} 5...
cxd4 {[%clk 0:02:55.5]} 6. exd4 {[%clk 0:01:34.4]} 6... Bg4 {[%clk 0:02:56.2]}
7. c3 {[%clk 0:01:32.1]} 7... e6 {[%clk 0:02:56.8]} 8. Bf4 {[%clk 0:01:26.1]}
8... Bd6 {[%clk 0:02:57.1]} 9. Bxd6 {[%clk 0:01:25.9]} 9... Qxd6 {[%clk
0:02:58]} 10. Nbd2 {[%clk 0:01:25.7]} 10... O-O {[%clk 0:02:57.3]} 11. Re1
{[%clk 0:01:25.9]} 11... Rfe8 {[%clk 0:02:55.2]} 12. h3 {[%clk 0:01:26.2]} 12...
Bh5 {[%clk 0:02:54.9]} 13. Ne5 {[%clk 0:01:21.9]} 13... Bxe2 {[%clk 0:02:55.8]}
14. Qxe2 {[%clk 0:01:20.5]} 14... Nd7 {[%clk 0:02:55.6]} 15. Nxd7 {[%clk
0:01:07.8]} 15... Qxd7 {[%clk 0:02:56.5]} 16. Nf3 {[%clk 0:01:02.2]} 16... Rab8
{[%clk 0:02:52.8]} 17. Ne5 {[%clk 0:00:49.9]} 17... Nxe5 {[%clk 0:02:47.5]} 18.
Qxe5 {[%clk 0:00:50.8]} 18... f6 {[%clk 0:02:47.1]} 19. Qg3 {[%clk 0:00:46.5]}
19... b5 {[%clk 0:02:47]} 20. a3 {[%clk 0:00:46.8]} 20... a5 {[%clk 0:02:45.9]}
21. Re3 {[%clk 0:00:47.2]} 21... b4 {[%clk 0:02:37.4]} 22. axb4 {[%clk
0:00:48.1]} 22... axb4 {[%clk 0:02:38.3]} 23. Ra6 {[%clk 0:00:42.6]} 23... Rb7
{[%clk 0:02:15]} 24. Rd6 {[%clk 0:00:33.6]} 24... Qc8 {[%clk 0:02:14]} 25. Kh2
{[%clk 0:00:29.9]} 25... bxc3 {[%clk 0:02:01.5]} 26. bxc3 {[%clk 0:00:28.1]}
26... Rb1 {[%clk 0:02:02]} 27. h4 {[%clk 0:00:23.3]} 27... Re7 {[%clk
0:01:40.8]} 28. Rxd5 {[%clk 0:00:20.6]} 28... Qc4 {[%clk 0:01:33.3]} 29. Rc5
{[%clk 0:00:16.3]} 29... Qf1 {[%clk 0:01:28.4]} 30. Qf4 {[%clk 0:00:14.7]} 30...
Re1 {[%clk 0:00:33.4]} 31. Kg3 {[%clk 0:00:13.9]} 31... Rxe3+ {[%clk 0:00:32.8]}
32. Qxe3 {[%clk 0:00:14.6]} 32... Kf7 {[%clk 0:00:31.9]} 33. Rc6 {[%clk
0:00:13.1]} 33... Qb5 {[%clk 0:00:30.2]} 34. Qf3 {[%clk 0:00:12.8]} 34... h5
{[%clk 0:00:20.5]} 35. Rc5 {[%clk 0:00:13.1]} 35... Qb8+ {[%clk 0:00:20.9]} 36.
Kh3 {[%clk 0:00:12.2]} 36... g6 {[%clk 0:00:21.5]} 37. g3 {[%clk 0:00:11.3]}
37... Rb7 {[%clk 0:00:07.8]} 38. Kg2 {[%clk 0:00:11.1]} 38... Rb6 {[%clk
0:00:07.2]} 39. Qe3 {[%clk 0:00:10.4]} 39... Qb7+ {[%clk 0:00:07.5]} 40. Qf3
{[%clk 0:00:10.8]} 40... Qd7 {[%clk 0:00:07.3]} 41. Ra5 {[%clk 0:00:08.2]} 41...
Rb1 {[%clk 0:00:06.8]} 42. Rc5 {[%clk 0:00:08]} 42... Qa7 {[%clk 0:00:06.6]} 43.
Qe4 {[%clk 0:00:07.5]} 43... Rb6 {[%clk 0:00:05.7]} 44. Rc6 {[%clk 0:00:07.1]}
44... Rxc6 {[%clk 0:00:05.5]} 45. Qxc6 {[%clk 0:00:07.8]} 45... Qe7 {[%clk
0:00:05.1]} 46. c4 {[%clk 0:00:07.2]} 46... Qd8 {[%clk 0:00:05.4]} 47. Qe4
{[%clk 0:00:06.4]} 47... Qd6 {[%clk 0:00:05.1]} 48. c5 {[%clk 0:00:06.1]} 48...
Qd7 {[%clk 0:00:04.4]} 49. Qa8 {[%clk 0:00:05.8]} 49... Qxd4 {[%clk 0:00:04.1]}
50. Qb7+ {[%clk 0:00:05.4]} 50... Ke8 {[%clk 0:00:04.3]} 51. Qc6+ {[%clk
0:00:05.2]} 51... Ke7 {[%clk 0:00:04.1]} 52. Qc7+ {[%clk 0:00:04.8]} 52... Qd7
{[%clk 0:00:02.8]} 53. Qb6 {[%clk 0:00:05]} 53... Qd5+ {[%clk 0:00:03.2]} 54.
Kg1 {[%clk 0:00:05.1]} 54... Qd4 {[%clk 0:00:03.8]} 55. Qc7+ {[%clk 0:00:03.8]}
55... Ke8 {[%clk 0:00:04.2]} 56. Qb6 {[%clk 0:00:04]} 56... Qd1+ {[%clk
0:00:04.3]} 57. Kg2 {[%clk 0:00:03.7]} 57... Qd5+ {[%clk 0:00:05.2]} 58. Kg1
{[%clk 0:00:04]} 58... Qd1+ {[%clk 0:00:05.4]} 59. Kh2 {[%clk 0:00:04.5]} 59...
Qd5 {[%clk 0:00:05.1]} 60. c6 {[%clk 0:00:04.3]} 60... Qc4 {[%clk 0:00:03.6]}
61. Qb8+ {[%clk 0:00:02.4]} 61... Ke7 {[%clk 0:00:03.6]} 62. c7 {[%clk
0:00:03.3]} 62... Qc5 {[%clk 0:00:04.3]} 63. c8=Q {[%clk 0:00:01.9]} 63... Qxf2+
{[%clk 0:00:04.8]} 64. Kh1 {[%clk 0:00:02.4]} 64... Qf1+ {[%clk 0:00:05.4]} 65.
Kh2 {[%clk 0:00:03.3]} 65... Qf2+ {[%clk 0:00:06.1]} 66. Kh1 {[%clk 0:00:03.7]}
66... Qf1+ {[%clk 0:00:06.7]} 67. Kh2 {[%clk 0:00:04.1]} 67... Qf2+ {[%clk
0:00:07.4]} 1/2-1/2

[Event "Early-Titled-Tuesday-Blitz-October-24-2023"]
[Site "Chess.com"]
[Date "2023.10.24"]
[Round "8"]
[White "carloseduar100"]
[Black "MANOJ_MISHRA123"]
[Result "1-0"]
[WhiteElo "2302"]
[BlackElo "2170"]
[TimeControl "180+1"]
[EndTime "9:26:49 PDT"]
[Termination "carloseduar100 won on time"]

1. d4 {[%clk 0:02:58.6]} 1... Nf6 {[%clk 0:03:00.9]} 2. Bg5 {[%clk 0:02:58.7]}
2... d5 {[%clk 0:02:55.9]} 3. Nd2 {[%clk 0:02:58.8]} 3... Bf5 {[%clk 0:02:54.7]}
4. Bxf6 {[%clk 0:02:58.9]} 4... gxf6 {[%clk 0:02:54.3]} 5. g3 {[%clk 0:02:59.8]}
5... e5 {[%clk 0:02:53.1]} 6. Bg2 {[%clk 0:03:00.7]} 6... exd4 {[%clk 0:02:51]}
7. Ngf3 {[%clk 0:03:01]} 7... c5 {[%clk 0:02:50.3]} 8. O-O {[%clk 0:03:01.9]}
8... Nc6 {[%clk 0:02:49.4]} 9. Re1 {[%clk 0:03:00.6]} 9... Bd6 {[%clk
0:02:44.2]} 10. e4 {[%clk 0:03:00.6]} 10... dxe4 {[%clk 0:02:42.5]} 11. Nxe4
{[%clk 0:03:00.7]} 11... Ne5 {[%clk 0:02:37.5]} 12. c3 {[%clk 0:02:56.4]} 12...
Bxe4 {[%clk 0:02:29.5]} 13. Rxe4 {[%clk 0:02:56.4]} 13... dxc3 {[%clk
0:02:24.3]} 14. bxc3 {[%clk 0:02:40.2]} 14... O-O {[%clk 0:02:21.8]} 15. Nh4
{[%clk 0:02:39.8]} 15... Bc7 {[%clk 0:02:13.3]} 16. Qh5 {[%clk 0:02:36.5]} 16...
Qd2 {[%clk 0:02:07.4]} 17. Rae1 {[%clk 0:02:11.6]} 17... Rad8 {[%clk 0:01:43.4]}
18. Nf5 {[%clk 0:02:06.6]} 18... Qg5 {[%clk 0:01:27.1]} 19. Qxg5+ {[%clk
0:01:50.9]} 19... fxg5 {[%clk 0:01:26.4]} 20. Rxe5 {[%clk 0:01:50.2]} 20... Bxe5
{[%clk 0:01:27.3]} 21. Rxe5 {[%clk 0:01:51.1]} 21... Rd1+ {[%clk 0:01:20.1]} 22.
Bf1 {[%clk 0:01:50.9]} 22... b6 {[%clk 0:01:18.9]} 23. Kg2 {[%clk 0:01:50.5]}
23... Rc1 {[%clk 0:01:14]} 24. Ne7+ {[%clk 0:01:47.5]} 24... Kg7 {[%clk
0:01:13]} 25. c4 {[%clk 0:01:44.4]} 25... f6 {[%clk 0:01:09.2]} 26. Re3 {[%clk
0:01:42.2]} 26... Rd8 {[%clk 0:01:05.3]} 27. Nd5 {[%clk 0:01:41.9]} 27... Rd7
{[%clk 0:00:59.8]} 28. Re6 {[%clk 0:01:37.3]} 28... Rf7 {[%clk 0:00:56.8]} 29.
Be2 {[%clk 0:01:37.1]} 29... Kg6 {[%clk 0:00:47.9]} 30. Bd3+ {[%clk 0:01:36.5]}
30... Kg7 {[%clk 0:00:47.9]} 31. Ne7 {[%clk 0:01:26.1]} 31... Rc3 {[%clk
0:00:44.3]} 32. Nf5+ {[%clk 0:01:26.4]} 32... Kf8 {[%clk 0:00:43.8]} 33. Rd6
{[%clk 0:01:21.5]} 33... Rc7 {[%clk 0:00:41.2]} 34. Rxf6+ {[%clk 0:01:19.4]}
34... Rf7 {[%clk 0:00:40.2]} 35. Rxf7+ {[%clk 0:00:58.9]} 35... Kxf7 {[%clk
0:00:41]} 36. Bf1 {[%clk 0:00:55.1]} 36... Rc2 {[%clk 0:00:35.3]} 37. Nd6+
{[%clk 0:00:47.2]} 37... Ke6 {[%clk 0:00:31.8]} 38. Ne4 {[%clk 0:00:47]} 38...
h6 {[%clk 0:00:26.8]} 39. a4 {[%clk 0:00:46.8]} 39... Ra2 {[%clk 0:00:24.8]} 40.
Nc3 {[%clk 0:00:46.7]} 40... Ra3 {[%clk 0:00:24.3]} 41. Nd5 {[%clk 0:00:40.2]}
41... Rxa4 {[%clk 0:00:23]} 42. f4 {[%clk 0:00:41.1]} 42... g4 {[%clk
0:00:20.2]} 43. Bd3 {[%clk 0:00:39.8]} 43... Ra3 {[%clk 0:00:13.4]} 44. Bg6
{[%clk 0:00:35.7]} 44... Ra2+ {[%clk 0:00:11.3]} 45. Kg1 {[%clk 0:00:35.6]}
45... Ra1+ {[%clk 0:00:11]} 46. Kf2 {[%clk 0:00:35.8]} 46... a5 {[%clk
0:00:11.9]} 47. f5+ {[%clk 0:00:35.6]} 47... Ke5 {[%clk 0:00:11.5]} 48. f6
{[%clk 0:00:35.3]} 48... Ra2+ {[%clk 0:00:10.4]} 49. Ke3 {[%clk 0:00:34.9]}
49... Ra3+ {[%clk 0:00:10.1]} 50. Bd3 {[%clk 0:00:34.8]} 50... Ke6 {[%clk
0:00:08.9]} 51. Nxb6 {[%clk 0:00:30.5]} 51... Kxf6 {[%clk 0:00:08.7]} 52. Nd7+
{[%clk 0:00:31]} 52... Ke7 {[%clk 0:00:07.5]} 53. Nxc5 {[%clk 0:00:31.9]} 53...
Ra2 {[%clk 0:00:07.5]} 54. Be2 {[%clk 0:00:24.1]} 54... h5 {[%clk 0:00:07.1]}
55. Nd3 {[%clk 0:00:19]} 55... a4 {[%clk 0:00:06.5]} 56. c5 {[%clk 0:00:18.5]}
56... a3 {[%clk 0:00:05.6]} 57. Nb4 {[%clk 0:00:15.9]} 57... Rb2 {[%clk
0:00:04.4]} 58. Nd5+ {[%clk 0:00:16.1]} 58... Ke6 {[%clk 0:00:03.9]} 59. Nc3
{[%clk 0:00:16.4]} 59... Rc2 {[%clk 0:00:03]} 60. Bc4+ {[%clk 0:00:11.5]} 60...
Kd7 {[%clk 0:00:02]} 61. Kd3 {[%clk 0:00:12.1]} 1-0

[Event "Early-Titled-Tuesday-Blitz-October-24-2023"]
[Site "Chess.com"]
[Date "2023.10.24"]
[Round "8"]
[White "klimkoj"]
[Black "xxysoul6"]
[Result "1-0"]
[WhiteElo "2797"]
[BlackElo "2981"]
[TimeControl "180+1"]
[EndTime "9:27:01 PDT"]
[Termination "klimkoj won on time"]

1. e4 {[%clk 0:03:00.9]} 1... c5 {[%clk 0:02:59.3]} 2. Nf3 {[%clk 0:03:01.2]}
2... d6 {[%clk 0:02:59.8]} 3. d4 {[%clk 0:03:01.5]} 3... cxd4 {[%clk 0:03:00.7]}
4. Nxd4 {[%clk 0:03:02.4]} 4... Nf6 {[%clk 0:03:01.4]} 5. Nc3 {[%clk 0:03:02.5]}
5... a6 {[%clk 0:03:01.9]} 6. Rg1 {[%clk 0:02:58]} 6... e5 {[%clk 0:02:48.9]} 7.
Nb3 {[%clk 0:02:57.4]} 7... Be6 {[%clk 0:02:49.5]} 8. g4 {[%clk 0:02:57.4]} 8...
d5 {[%clk 0:02:50]} 9. exd5 {[%clk 0:02:55.2]} 9... Nxd5 {[%clk 0:02:50.9]} 10.
Nxd5 {[%clk 0:02:55.6]} 10... Qxd5 {[%clk 0:02:50.4]} 11. Qxd5 {[%clk 0:02:56]}
11... Bxd5 {[%clk 0:02:50.7]} 12. Be3 {[%clk 0:02:56.9]} 12... Nc6 {[%clk
0:02:51.2]} 13. O-O-O {[%clk 0:02:57.5]} 13... O-O-O {[%clk 0:02:51.8]} 14. Bb6
{[%clk 0:02:55.8]} 14... Rd6 {[%clk 0:02:51.8]} 15. g5 {[%clk 0:02:50.9]} 15...
Be6 {[%clk 0:02:49.2]} 16. Bg2 {[%clk 0:02:44.5]} 16... Nb4 {[%clk 0:01:53.5]}
17. Rxd6 {[%clk 0:02:10.3]} 17... Bxd6 {[%clk 0:01:54.4]} 18. a3 {[%clk
0:02:10.8]} 18... Nd3+ {[%clk 0:01:51.7]} 19. Kb1 {[%clk 0:02:01.7]} 19... Nf4
{[%clk 0:01:40.8]} 20. Be4 {[%clk 0:01:57.5]} 20... Bc7 {[%clk 0:01:37.4]} 21.
Bxc7 {[%clk 0:01:46.6]} 21... Kxc7 {[%clk 0:01:38.3]} 22. Nc5 {[%clk 0:01:47.2]}
22... Bc8 {[%clk 0:01:29]} 23. b4 {[%clk 0:01:38.3]} 23... g6 {[%clk 0:01:17.9]}
24. h4 {[%clk 0:01:37.1]} 24... h6 {[%clk 0:01:15.8]} 25. Nd3 {[%clk 0:01:30]}
25... hxg5 {[%clk 0:01:00.3]} 26. hxg5 {[%clk 0:01:30.9]} 26... Nxd3 {[%clk
0:00:57.1]} 27. cxd3 {[%clk 0:01:30.6]} 27... Kd6 {[%clk 0:00:54.5]} 28. Rc1
{[%clk 0:01:24.8]} 28... Bf5 {[%clk 0:00:38.2]} 29. Bxb7 {[%clk 0:01:23.4]}
29... Bxd3+ {[%clk 0:00:38.7]} 30. Kb2 {[%clk 0:01:23.4]} 30... e4 {[%clk
0:00:38.9]} 31. Rc6+ {[%clk 0:01:18.8]} 31... Ke5 {[%clk 0:00:36.3]} 32. Rf6
{[%clk 0:01:13.8]} 32... Rh5 {[%clk 0:00:30.4]} 33. Rxf7 {[%clk 0:01:12.9]}
33... Rxg5 {[%clk 0:00:30.6]} 34. Kc3 {[%clk 0:01:11]} 34... Rg1 {[%clk
0:00:28.9]} 35. Re7+ {[%clk 0:00:59.6]} 35... Kf4 {[%clk 0:00:28.9]} 36. Rf7+
{[%clk 0:00:59.7]} 36... Ke5 {[%clk 0:00:29]} 37. Re7+ {[%clk 0:00:59.7]} 37...
Kf6 {[%clk 0:00:28.1]} 38. Re8 {[%clk 0:00:57]} 38... Rc1+ {[%clk 0:00:28.1]}
39. Kd4 {[%clk 0:00:56.8]} 39... Rc4+ {[%clk 0:00:28.3]} 40. Ke3 {[%clk
0:00:57.4]} 40... Rc3 {[%clk 0:00:28.8]} 41. Kd4 {[%clk 0:00:49]} 41... Rxa3
{[%clk 0:00:27.4]} 42. Bxe4 {[%clk 0:00:48.9]} 42... Bb5 {[%clk 0:00:26.4]} 43.
Rg8 {[%clk 0:00:45.3]} 43... Rb3 {[%clk 0:00:26.6]} 44. Rxg6+ {[%clk 0:00:44.3]}
44... Ke7 {[%clk 0:00:25.8]} 45. Ke5 {[%clk 0:00:39.1]} 45... Rxb4 {[%clk
0:00:26.1]} 46. Rg7+ {[%clk 0:00:38.9]} 46... Kf8 {[%clk 0:00:26.1]} 47. Ra7
{[%clk 0:00:39.5]} 47... Bf1 {[%clk 0:00:19.5]} 48. f4 {[%clk 0:00:38.8]} 48...
Rb5+ {[%clk 0:00:19.1]} 49. Kd6 {[%clk 0:00:35.1]} 49... Rb6+ {[%clk 0:00:18.6]}
50. Kc5 {[%clk 0:00:33.7]} 50... Rb5+ {[%clk 0:00:16.7]} 51. Kd6 {[%clk
0:00:31.7]} 51... Rb6+ {[%clk 0:00:16.9]} 52. Kc5 {[%clk 0:00:32.3]} 52... Rb5+
{[%clk 0:00:14.2]} 53. Kd4 {[%clk 0:00:32.5]} 53... Rb4+ {[%clk 0:00:13.7]} 54.
Ke5 {[%clk 0:00:31.5]} 54... Rb5+ {[%clk 0:00:13.9]} 55. Kf6 {[%clk 0:00:30.9]}
55... Rb6+ {[%clk 0:00:14.1]} 56. Kg5 {[%clk 0:00:31.6]} 56... Rb4 {[%clk
0:00:11.6]} 57. Bg6 {[%clk 0:00:30.1]} 57... Bg2 {[%clk 0:00:05.9]} 58. f5
{[%clk 0:00:28]} 58... Bb7 {[%clk 0:00:06]} 59. f6 {[%clk 0:00:25.2]} 59... Rb5+
{[%clk 0:00:05.8]} 60. Kf4 {[%clk 0:00:25]} 60... Rb6 {[%clk 0:00:06.2]} 61. Ke5
{[%clk 0:00:24.9]} 61... Rb5+ {[%clk 0:00:06]} 62. Kd4 {[%clk 0:00:25.2]} 62...
Rb6 {[%clk 0:00:06.5]} 63. Bh5 {[%clk 0:00:21.5]} 63... Rb5 {[%clk 0:00:04.6]}
64. Be2 {[%clk 0:00:19.5]} 64... Rb6 {[%clk 0:00:04.8]} 65. Bc4 {[%clk
0:00:19.1]} 65... a5 {[%clk 0:00:02.7]} 66. f7 {[%clk 0:00:18.2]} 66... a4
{[%clk 0:00:02.5]} 67. Rxa4 {[%clk 0:00:14.8]} 67... Rd6+ {[%clk 0:00:03]} 68.
Ke5 {[%clk 0:00:14.6]} 68... Rc6 {[%clk 0:00:03.6]} 69. Be6 {[%clk 0:00:14.1]}
69... Bc8 {[%clk 0:00:02.3]} 70. Bd5 {[%clk 0:00:13.7]} 70... Rc7 {[%clk
0:00:02]} 71. Rh4 {[%clk 0:00:13.7]} 71... Ke7 {[%clk 0:00:01.9]} 72. Rh8 {[%clk
0:00:13.2]} 1-0